[Event "Titled Tuesday Blitz March 08 Late 2022"]
[White "Bortnyk, Olexandr"]
[Black "Pinheiro, Iung Alicio de O."]
[WhiteFideId "14120828"]
[BlackFideId "2104350"]
[WhiteElo "2723"]
[BlackElo "2612"]
[Result "1-0"]
[Round "02"]
[TimeControl "180+1"]
[Date "2022.03.08"]
[WhiteClock "0:00:06"]
[BlackClock "0:00:04"]

1. e4 {[%clk 0:02:59]}  c5 {[%clk 0:02:59]} 2. c3 {[%clk 0:02:58]}  Nf6 {[%clk 0:02:52]} 3. e5 {[%clk 0:02:58]}  Nd5 {[%clk 0:02:53]} 4. d4 {[%clk 0:02:59]}  e6 {[%clk 0:02:51]} 5. Nf3 {[%clk 0:02:59]}  d6 {[%clk 0:02:45]} 6. Bc4 {[%clk 0:02:53]}  cxd4 {[%clk 0:02:45]} 7. cxd4 {[%clk 0:02:54]}  Nb6 {[%clk 0:02:43]} 8. Bd3 {[%clk 0:02:53]}  dxe5 {[%clk 0:02:41]} 9. dxe5 {[%clk 0:02:54]}  N8d7 {[%clk 0:02:40]} 10. O-O {[%clk 0:02:54]}  Nc5 {[%clk 0:02:41]} 11. Bb5+ {[%clk 0:02:44]}  Bd7 {[%clk 0:02:39]} 12. Qe2 {[%clk 0:02:45]}  Bxb5 {[%clk 0:02:36]} 13. Qxb5+ {[%clk 0:02:46]}  Qd7 {[%clk 0:02:36]} 14. Nc3 {[%clk 0:02:46]}  Be7 {[%clk 0:02:23]} 15. Rd1 {[%clk 0:02:42]}  Qxb5 {[%clk 0:02:19]} 16. Nxb5 {[%clk 0:02:43]}  O-O {[%clk 0:02:19]} 17. Be3 {[%clk 0:02:44]}  Nd5 {[%clk 0:02:16]} 18. Bd4 {[%clk 0:02:43]}  a6 {[%clk 0:02:11]} 19. Nc3 {[%clk 0:02:30]}  Nxc3 {[%clk 0:02:02]} 20. Bxc3 {[%clk 0:02:31]}  Rfd8 {[%clk 0:01:42]} 21. Ba5 {[%clk 0:02:31]}  Rxd1+ {[%clk 0:01:33]} 22. Rxd1 {[%clk 0:02:31]}  Kf8 {[%clk 0:01:31]} 23. Kf1 {[%clk 0:02:25]}  Ke8 {[%clk 0:01:29]} 24. Ke2 {[%clk 0:02:26]}  Rc8 {[%clk 0:01:25]} 25. Rc1 {[%clk 0:02:22]}  Kd7 {[%clk 0:01:24]} 26. Rd1+ {[%clk 0:02:17]}  Ke8 {[%clk 0:01:24]} 27. Rc1 {[%clk 0:02:17]}  Kd7 {[%clk 0:01:24]} 28. Bb4 {[%clk 0:02:14]}  b6 {[%clk 0:01:06]} 29. h3 {[%clk 0:01:58]}  f6 {[%clk 0:00:32]} 30. exf6 {[%clk 0:01:52]}  gxf6 {[%clk 0:00:30]} 31. Rd1+ {[%clk 0:01:49]}  Ke8 {[%clk 0:00:30]} 32. Nd4 {[%clk 0:01:47]}  Kf7 {[%clk 0:00:26]} 33. Rc1 {[%clk 0:01:45]}  Rd8 {[%clk 0:00:25]} 34. Nc6 {[%clk 0:01:45]}  Rd5 {[%clk 0:00:23]} 35. Nxe7 {[%clk 0:01:40]}  Kxe7 {[%clk 0:00:23]} 36. Rc3 {[%clk 0:01:36]}  a5 {[%clk 0:00:23]} 37. Bxc5+ {[%clk 0:01:36]}  bxc5 {[%clk 0:00:21]} 38. Rc4 {[%clk 0:01:27]}  Re5+ {[%clk 0:00:18]} 39. Kf3 {[%clk 0:01:23]}  Rf5+ {[%clk 0:00:17]} 40. Ke2 {[%clk 0:01:08]}  Re5+ {[%clk 0:00:17]} 41. Kf1 {[%clk 0:01:09]}  Rd5 {[%clk 0:00:17]} 42. Ra4 {[%clk 0:01:09]}  Rd2 {[%clk 0:00:17]} 43. b3 {[%clk 0:01:09]}  Rc2 {[%clk 0:00:14]} 44. Rxa5 {[%clk 0:01:09]}  c4 {[%clk 0:00:15]} 45. bxc4 {[%clk 0:01:08]}  Rxc4 {[%clk 0:00:15]} 46. Ra8 {[%clk 0:00:43]}  Rc2 {[%clk 0:00:14]} 47. a4 {[%clk 0:00:43]}  h5 {[%clk 0:00:14]} 48. a5 {[%clk 0:00:43]}  Ra2 {[%clk 0:00:15]} 49. a6 {[%clk 0:00:43]}  Kf7 {[%clk 0:00:14]} 50. a7 {[%clk 0:00:42]}  Kg7 {[%clk 0:00:14]} 51. g3 {[%clk 0:00:24]}  e5 {[%clk 0:00:14]} 52. g4 {[%clk 0:00:15]}  hxg4 {[%clk 0:00:14]} 53. hxg4 {[%clk 0:00:16]}  Ra4 {[%clk 0:00:14]} 54. Ke2 {[%clk 0:00:15]}  Ra3 {[%clk 0:00:14]} 55. Kd2 {[%clk 0:00:15]}  Ra1 {[%clk 0:00:14]} 56. Ke3 {[%clk 0:00:15]}  Ra6 {[%clk 0:00:15]} 57. Ke4 {[%clk 0:00:15]}  Ra1 {[%clk 0:00:15]} 58. Kf5 {[%clk 0:00:12]}  Ra5 {[%clk 0:00:15]} 59. Ke6 {[%clk 0:00:06]}  Ra6+ {[%clk 0:00:15]} 60. Ke7 {[%clk 0:00:07]}  Ra1 {[%clk 0:00:16]} 61. Kd6 {[%clk 0:00:07]}  Ra6+ {[%clk 0:00:15]} 62. Kd5 {[%clk 0:00:07]}  Ra1 {[%clk 0:00:16]} 63. Ke6 {[%clk 0:00:08]}  Ra6+ {[%clk 0:00:16]} 64. Kf5 {[%clk 0:00:08]}  Ra1 {[%clk 0:00:16]} 65. g5 {[%clk 0:00:08]}  fxg5 {[%clk 0:00:16]} 66. Kxg5 {[%clk 0:00:09]}  Ra2 {[%clk 0:00:15]} 67. Kg4 {[%clk 0:00:08]}  Ra4+ {[%clk 0:00:14]} 68. Kf5 {[%clk 0:00:08]}  Ra5 {[%clk 0:00:13]} 69. Ke6 {[%clk 0:00:08]}  Kh7 {[%clk 0:00:13]} 70. Kf6 {[%clk 0:00:08]}  e4 {[%clk 0:00:10]} 71. Kf7 {[%clk 0:00:06]}  Ra1 {[%clk 0:00:09]} 72. Ke6 {[%clk 0:00:07]}  Ra5 {[%clk 0:00:09]} 73. Kf6 {[%clk 0:00:07]}  Ra3 {[%clk 0:00:02]} 74. Kf5 {[%clk 0:00:06]}  Ra4 {[%clk 0:00:03]} 75. Kf4 {[%clk 0:00:03]}  Kg7 {[%clk 0:00:04]} 76. Ke5 {[%clk 0:00:02]}  Kh7 {[%clk 0:00:05]} 77. Kd5 {[%clk 0:00:03]}  Kg7 {[%clk 0:00:05]} 78. Kc5 {[%clk 0:00:03]}  Ra1 {[%clk 0:00:05]} 79. Kb6 {[%clk 0:00:03]}  Rb1+ {[%clk 0:00:05]} 80. Kc6 {[%clk 0:00:04]}  Rc1+ {[%clk 0:00:06]} 81. Kd5 {[%clk 0:00:04]}  Ra1 {[%clk 0:00:05]} 82. Kxe4 {[%clk 0:00:04]}  Ra4+ {[%clk 0:00:04]} 83. Kf3 {[%clk 0:00:05]}  Kh7 {[%clk 0:00:04]} 84. Kg3 {[%clk 0:00:05]}  Kg7 {[%clk 0:00:04]} 85. f4 {[%clk 0:00:05]}  Kh7 {[%clk 0:00:04]} 86. f5 {[%clk 0:00:06]} 1-0


[Site "https://www.chess.com"]

[Event "Titled Tuesday Blitz March 08 Late 2022"]
[White "Chigaev, Maksim"]
[Black "Martin Barcelo, Carles"]
[WhiteFideId "4108116"]
[BlackFideId "24561444"]
[WhiteElo "2502"]
[BlackElo "1875"]
[Result "1-0"]
[Round "02"]
[TimeControl "180+1"]
[Date "2022.03.09"]
[WhiteClock "0:00:08"]
[BlackClock "0:00:01"]

1. d4 {[%clk 0:03:00]}  Nf6 {[%clk 0:02:56]} 2. Nf3 {[%clk 0:02:59]}  g6 {[%clk 0:02:51]} 3. c4 {[%clk 0:02:59]}  Bg7 {[%clk 0:02:50]} 4. Nc3 {[%clk 0:03:00]}  O-O {[%clk 0:02:48]} 5. e4 {[%clk 0:03:00]}  d6 {[%clk 0:02:48]} 6. Be2 {[%clk 0:02:59]}  e5 {[%clk 0:02:45]} 7. O-O {[%clk 0:02:59]}  Bg4 {[%clk 0:02:45]} 8. d5 {[%clk 0:02:57]}  a5 {[%clk 0:02:26]} 9. h3 {[%clk 0:02:48]}  Bd7 {[%clk 0:02:21]} 10. c5 {[%clk 0:02:48]}  Ne8 {[%clk 0:02:13]} 11. cxd6 {[%clk 0:02:35]}  Nxd6 {[%clk 0:02:11]} 12. Bg5 {[%clk 0:02:32]}  f6 {[%clk 0:01:59]} 13. Be3 {[%clk 0:02:32]}  b5 {[%clk 0:01:52]} 14. a3 {[%clk 0:02:09]}  Na6 {[%clk 0:01:36]} 15. Qc2 {[%clk 0:02:07]}  f5 {[%clk 0:01:28]} 16. Rfe1 {[%clk 0:01:29]}  f4 {[%clk 0:00:53]} 17. Bd2 {[%clk 0:01:27]}  g5 {[%clk 0:00:52]} 18. Nh2 {[%clk 0:01:22]}  Qe8 {[%clk 0:00:43]} 19. Qd1 {[%clk 0:01:21]}  a4 {[%clk 0:00:30]} 20. Bh5 {[%clk 0:01:18]}  Qe7 {[%clk 0:00:29]} 21. Bg4 {[%clk 0:01:17]}  Nc5 {[%clk 0:00:28]} 22. Bxd7 {[%clk 0:01:13]}  Qxd7 {[%clk 0:00:28]} 23. Qh5 {[%clk 0:01:03]}  Qe7 {[%clk 0:00:20]} 24. Nf3 {[%clk 0:01:01]}  h6 {[%clk 0:00:19]} 25. Re2 {[%clk 0:00:40]}  Nc4 {[%clk 0:00:18]} 26. Be1 {[%clk 0:00:29]}  Rab8 {[%clk 0:00:18]} 27. Na2 {[%clk 0:00:27]}  Nb3 {[%clk 0:00:17]} 28. Rd1 {[%clk 0:00:23]}  Qf7 {[%clk 0:00:12]} 29. Qxf7+ {[%clk 0:00:23]}  Kxf7 {[%clk 0:00:11]} 30. Nb4 {[%clk 0:00:23]}  Nca5 {[%clk 0:00:08]} 31. Bc3 {[%clk 0:00:22]}  Rfd8 {[%clk 0:00:07]} 32. Nxe5+ {[%clk 0:00:18]}  Bxe5 {[%clk 0:00:05]} 33. Bxe5 {[%clk 0:00:19]}  Rbc8 {[%clk 0:00:04]} 34. Rf1 {[%clk 0:00:15]}  Nc4 {[%clk 0:00:04]} 35. Bc3 {[%clk 0:00:15]}  c5 {[%clk 0:00:01]} 36. dxc6 {[%clk 0:00:14]}  Nba5 {[%clk 0:00:02]} 37. h4 {[%clk 0:00:08]}  Nxc6 {[%clk 0:00:02]} 38. hxg5 {[%clk 0:00:08]}  hxg5 {[%clk 0:00:02]} 39. Nd5 {[%clk 0:00:08]}  N6e5 {[%clk 0:00:01]} 40. f3 {[%clk 0:00:08]} 1-0


[Site "https://www.chess.com"]

[Event "Titled Tuesday Blitz March 08 Late 2022"]
[White "Chyngyz, Sultai"]
[Black "Batsiashvili, Nino"]
[WhiteFideId "13803158"]
[BlackFideId "13602993"]
[WhiteElo "1365"]
[BlackElo "2192"]
[Result "1/2-1/2"]
[Round "02"]
[TimeControl "180+1"]
[Date "2022.03.09"]
[WhiteClock "0:00:08"]
[BlackClock "0:00:09"]

1. e4 {[%clk 0:02:57]}  c6 {[%clk 0:02:59]} 2. d4 {[%clk 0:02:56]}  d5 {[%clk 0:03:00]} 3. exd5 {[%clk 0:02:55]}  cxd5 {[%clk 0:03:01]} 4. Bd3 {[%clk 0:02:54]}  Nf6 {[%clk 0:03:00]} 5. Bf4 {[%clk 0:02:53]}  g6 {[%clk 0:02:56]} 6. c3 {[%clk 0:02:52]}  Bg7 {[%clk 0:02:55]} 7. Nf3 {[%clk 0:02:52]}  O-O {[%clk 0:02:54]} 8. Nbd2 {[%clk 0:02:52]}  Bf5 {[%clk 0:02:54]} 9. Bxf5 {[%clk 0:02:50]}  gxf5 {[%clk 0:02:55]} 10. O-O {[%clk 0:02:50]}  e6 {[%clk 0:02:54]} 11. Nb3 {[%clk 0:02:41]}  Ne4 {[%clk 0:02:54]} 12. Nfd2 {[%clk 0:02:38]}  Nc6 {[%clk 0:02:52]} 13. Nxe4 {[%clk 0:02:38]}  fxe4 {[%clk 0:02:52]} 14. Qg4 {[%clk 0:02:34]}  f5 {[%clk 0:02:51]} 15. Qg3 {[%clk 0:02:32]}  Qf6 {[%clk 0:02:45]} 16. Nc5 {[%clk 0:02:27]}  Rf7 {[%clk 0:02:43]} 17. h4 {[%clk 0:02:16]}  b6 {[%clk 0:02:42]} 18. Na6 {[%clk 0:02:04]}  Qg6 {[%clk 0:02:34]} 19. Qxg6 {[%clk 0:02:04]}  hxg6 {[%clk 0:02:35]} 20. Nc7 {[%clk 0:02:03]}  Rc8 {[%clk 0:01:54]} 21. Nxe6 {[%clk 0:02:03]}  Re7 {[%clk 0:01:54]} 22. Ng5 {[%clk 0:01:58]}  Bf6 {[%clk 0:01:53]} 23. Rac1 {[%clk 0:01:50]}  Na5 {[%clk 0:01:51]} 24. b3 {[%clk 0:01:49]}  b5 {[%clk 0:01:23]} 25. g3 {[%clk 0:01:33]}  Ree8 {[%clk 0:01:22]} 26. Kg2 {[%clk 0:01:31]}  Rc6 {[%clk 0:01:22]} 27. h5 {[%clk 0:01:16]}  gxh5 {[%clk 0:01:17]} 28. Rh1 {[%clk 0:01:15]}  Rec8 {[%clk 0:01:16]} 29. Rxh5 {[%clk 0:01:05]}  Rxc3 {[%clk 0:01:15]} 30. Rxc3 {[%clk 0:01:04]}  Rxc3 {[%clk 0:01:15]} 31. Bd2 {[%clk 0:01:04]}  b4 {[%clk 0:01:10]} 32. Bxc3 {[%clk 0:01:01]}  bxc3 {[%clk 0:01:11]} 33. Ne6 {[%clk 0:00:56]}  Kf7 {[%clk 0:01:00]} 34. Nf4 {[%clk 0:00:53]}  Bxd4 {[%clk 0:00:49]} 35. Rxf5+ {[%clk 0:00:50]}  Ke7 {[%clk 0:00:48]} 36. Nxd5+ {[%clk 0:00:48]}  Kd6 {[%clk 0:00:47]} 37. Nb4 {[%clk 0:00:44]}  Nc6 {[%clk 0:00:33]} 38. Nc2 {[%clk 0:00:38]}  Bc5 {[%clk 0:00:28]} 39. Rf6+ {[%clk 0:00:34]}  Kd5 {[%clk 0:00:27]} 40. g4 {[%clk 0:00:32]}  Nb4 {[%clk 0:00:23]} 41. Ne3+ {[%clk 0:00:29]}  Bxe3 {[%clk 0:00:19]} 42. fxe3 {[%clk 0:00:27]}  c2 {[%clk 0:00:19]} 43. Rf1 {[%clk 0:00:23]}  Nd3 {[%clk 0:00:19]} 44. g5 {[%clk 0:00:17]}  c1=Q {[%clk 0:00:19]} 45. Rxc1 {[%clk 0:00:17]}  Nxc1 {[%clk 0:00:20]} 46. Kg3 {[%clk 0:00:16]}  Nxa2 {[%clk 0:00:18]} 47. Kf4 {[%clk 0:00:16]}  Ke6 {[%clk 0:00:17]} 48. Kxe4 {[%clk 0:00:16]}  Nc1 {[%clk 0:00:17]} 49. b4 {[%clk 0:00:16]}  Na2 {[%clk 0:00:16]} 50. Kf4 {[%clk 0:00:15]}  Nxb4 {[%clk 0:00:16]} 51. e4 {[%clk 0:00:14]}  Nc6 {[%clk 0:00:16]} 52. Ke3 {[%clk 0:00:12]}  a5 {[%clk 0:00:12]} 53. Kd3 {[%clk 0:00:12]}  a4 {[%clk 0:00:11]} 54. Kc3 {[%clk 0:00:11]}  Ke5 {[%clk 0:00:09]} 55. Kd3 {[%clk 0:00:10]}  Ne7 {[%clk 0:00:09]} 56. Kc3 {[%clk 0:00:09]}  Kxe4 {[%clk 0:00:09]} 57. Kb4 {[%clk 0:00:08]}  Kf5 {[%clk 0:00:09]} 58. Kxa4 {[%clk 0:00:08]}  Kxg5 {[%clk 0:00:09]} 1/2-1/2


[Site "https://www.chess.com"]

[Event "Titled Tuesday Blitz March 08 Late 2022"]
[White "Corallo, Michael"]
[Black "Leiva, Gianmarco"]
[WhiteFideId "2024152"]
[BlackFideId "3804399"]
[WhiteElo "2347"]
[BlackElo "2696"]
[Result "0-1"]
[Round "02"]
[TimeControl "180+1"]
[Date "2022.03.09"]
[WhiteClock "0:00:03"]
[BlackClock "0:00:04"]

1. e4 {[%clk 0:03:00]}  c5 {[%clk 0:02:54]} 2. Nf3 {[%clk 0:03:00]}  d6 {[%clk 0:02:55]} 3. d4 {[%clk 0:03:01]}  cxd4 {[%clk 0:02:56]} 4. Nxd4 {[%clk 0:03:02]}  Nf6 {[%clk 0:02:56]} 5. Nc3 {[%clk 0:03:02]}  a6 {[%clk 0:02:57]} 6. Bg5 {[%clk 0:03:03]}  e6 {[%clk 0:02:57]} 7. f4 {[%clk 0:03:03]}  Be7 {[%clk 0:02:58]} 8. Qf3 {[%clk 0:03:03]}  Qc7 {[%clk 0:02:58]} 9. O-O-O {[%clk 0:03:04]}  Nbd7 {[%clk 0:02:59]} 10. g4 {[%clk 0:03:03]}  h6 {[%clk 0:02:59]} 11. Bxf6 {[%clk 0:03:00]}  Bxf6 {[%clk 0:03:00]} 12. h4 {[%clk 0:02:58]}  Nb6 {[%clk 0:03:01]} 13. g5 {[%clk 0:02:55]}  Bxd4 {[%clk 0:03:01]} 14. Rxd4 {[%clk 0:02:54]}  Qc5 {[%clk 0:03:02]} 15. Qd3 {[%clk 0:02:24]}  hxg5 {[%clk 0:03:02]} 16. Rxd6 {[%clk 0:02:23]}  Ke7 {[%clk 0:01:47]} 17. e5 {[%clk 0:02:15]}  gxf4 {[%clk 0:01:48]} 18. Ne4 {[%clk 0:02:13]}  Qa5 {[%clk 0:01:29]} 19. Bg2 {[%clk 0:01:26]}  Nd7 {[%clk 0:01:25]} 20. Rxd7+ {[%clk 0:00:36]}  Bxd7 {[%clk 0:01:23]} 21. Qd6+ {[%clk 0:00:37]}  Ke8 {[%clk 0:00:28]} 22. Rd1 {[%clk 0:00:35]}  Bc6 {[%clk 0:00:23]} 23. Nf6+ {[%clk 0:00:13]}  gxf6 {[%clk 0:00:21]} 24. exf6 {[%clk 0:00:14]}  Qd8 {[%clk 0:00:15]} 25. Bxc6+ {[%clk 0:00:14]}  bxc6 {[%clk 0:00:16]} 26. Qxc6+ {[%clk 0:00:15]}  Kf8 {[%clk 0:00:16]} 27. Rxd8+ {[%clk 0:00:13]}  Rxd8 {[%clk 0:00:16]} 28. Qc7 {[%clk 0:00:13]}  Re8 {[%clk 0:00:13]} 29. Qd6+ {[%clk 0:00:13]}  Kg8 {[%clk 0:00:13]} 30. Qxf4 {[%clk 0:00:13]}  Rh7 {[%clk 0:00:11]} 31. Qg3+ {[%clk 0:00:09]}  Kh8 {[%clk 0:00:11]} 32. Qd3 {[%clk 0:00:07]}  Rxh4 {[%clk 0:00:09]} 33. Qxa6 {[%clk 0:00:07]}  Rh6 {[%clk 0:00:06]} 34. Qf1 {[%clk 0:00:05]}  Rg8 {[%clk 0:00:03]} 35. b3 {[%clk 0:00:05]}  Rgg6 {[%clk 0:00:04]} 36. Kb2 {[%clk 0:00:04]}  Rxf6 {[%clk 0:00:04]} 37. Qd3 {[%clk 0:00:04]}  e5 {[%clk 0:00:03]} 38. a4 {[%clk 0:00:04]}  Rd6 {[%clk 0:00:03]} 39. Qe4 {[%clk 0:00:04]}  Rhe6 {[%clk 0:00:03]} 40. Qh4+ {[%clk 0:00:04]}  Kg7 {[%clk 0:00:03]} 41. Qg5+ {[%clk 0:00:04]}  Kf8 {[%clk 0:00:04]} 42. a5 {[%clk 0:00:04]}  e4 {[%clk 0:00:04]} 43. Qe3 {[%clk 0:00:04]}  Rd5 {[%clk 0:00:02]} 44. b4 {[%clk 0:00:05]}  Rf5 {[%clk 0:00:03]} 45. b5 {[%clk 0:00:05]}  Rxb5+ {[%clk 0:00:03]} 46. Kc3 {[%clk 0:00:04]}  Rxa5 {[%clk 0:00:03]} 47. Qb6 {[%clk 0:00:02]}  Rf5 {[%clk 0:00:03]} 48. Qd8+ {[%clk 0:00:02]}  Kg7 {[%clk 0:00:03]} 49. Qh4 {[%clk 0:00:01]}  e3 {[%clk 0:00:03]} 50. Qg4+ {[%clk 0:00:02]}  Kf6 {[%clk 0:00:03]} 51. Qe2 {[%clk 0:00:02]}  Rf2 {[%clk 0:00:03]} 52. Kd3 {[%clk 0:00:02]}  Rxe2 {[%clk 0:00:03]} 53. Kxe2 {[%clk 0:00:03]}  Kf5 {[%clk 0:00:04]} 0-1


[Site "https://www.chess.com"]

[Event "Titled Tuesday Blitz March 08 Late 2022"]
[White "Cori T., Deysi"]
[Black "Moussard, Jules"]
[WhiteFideId "3801934"]
[BlackFideId "642908"]
[WhiteElo "2341"]
[BlackElo "2557"]
[Result "1-0"]
[Round "02"]
[TimeControl "180+1"]
[Date "2022.03.08"]
[WhiteClock "0:00:04"]
[BlackClock "0:01:09"]

1. d4 {[%clk 0:03:00]}  Nf6 {[%clk 0:02:59]} 2. Nf3 {[%clk 0:03:00]}  e6 {[%clk 0:03:00]} 3. e3 {[%clk 0:03:00]}  c5 {[%clk 0:03:00]} 4. Bd3 {[%clk 0:03:01]}  Nc6 {[%clk 0:03:00]} 5. O-O {[%clk 0:03:01]}  d5 {[%clk 0:03:00]} 6. c4 {[%clk 0:03:00]}  dxc4 {[%clk 0:03:00]} 7. Bxc4 {[%clk 0:03:01]}  cxd4 {[%clk 0:03:01]} 8. exd4 {[%clk 0:03:01]}  Be7 {[%clk 0:03:01]} 9. Nc3 {[%clk 0:03:01]}  O-O {[%clk 0:03:01]} 10. a3 {[%clk 0:03:01]}  b6 {[%clk 0:03:01]} 11. Bg5 {[%clk 0:02:56]}  Bb7 {[%clk 0:03:01]} 12. Rc1 {[%clk 0:02:55]}  Rc8 {[%clk 0:03:00]} 13. Ba2 {[%clk 0:02:55]}  h6 {[%clk 0:03:00]} 14. Bh4 {[%clk 0:02:55]}  Nh5 {[%clk 0:03:00]} 15. Bxe7 {[%clk 0:02:49]}  Nxe7 {[%clk 0:03:01]} 16. Bb1 {[%clk 0:02:01]}  Nf4 {[%clk 0:02:56]} 17. Qd2 {[%clk 0:01:30]}  Nfd5 {[%clk 0:02:45]} 18. Ne2 {[%clk 0:01:27]}  Qd6 {[%clk 0:02:42]} 19. Ne5 {[%clk 0:01:23]}  f6 {[%clk 0:02:33]} 20. Ng4 {[%clk 0:01:05]}  Nf5 {[%clk 0:02:21]} 21. Ng3 {[%clk 0:01:04]}  Qf4 {[%clk 0:02:07]} 22. Qxf4 {[%clk 0:00:54]}  Nxf4 {[%clk 0:02:07]} 23. Rxc8 {[%clk 0:00:51]}  Rxc8 {[%clk 0:02:07]} 24. Nxf5 {[%clk 0:00:49]}  exf5 {[%clk 0:02:08]} 25. Bxf5 {[%clk 0:00:50]}  Rd8 {[%clk 0:02:05]} 26. d5 {[%clk 0:00:25]}  Bxd5 {[%clk 0:01:50]} 27. Rd1 {[%clk 0:00:20]}  Re8 {[%clk 0:01:31]} 28. Ne3 {[%clk 0:00:20]}  Bf7 {[%clk 0:01:22]} 29. Rd7 {[%clk 0:00:19]}  Nd5 {[%clk 0:01:17]} 30. Rxa7 {[%clk 0:00:16]}  Nxe3 {[%clk 0:01:16]} 31. fxe3 {[%clk 0:00:17]}  g6 {[%clk 0:01:16]} 32. Bd3 {[%clk 0:00:09]}  Rxe3 {[%clk 0:01:17]} 33. Rd7 {[%clk 0:00:08]}  Re1+ {[%clk 0:01:06]} 34. Kf2 {[%clk 0:00:08]}  Rd1 {[%clk 0:01:06]} 35. Ke3 {[%clk 0:00:08]}  Kf8 {[%clk 0:01:04]} 36. Rd6 {[%clk 0:00:07]}  Ke7 {[%clk 0:00:56]} 37. Rxb6 {[%clk 0:00:07]}  g5 {[%clk 0:00:57]} 38. h3 {[%clk 0:00:06]}  Rg1 {[%clk 0:00:56]} 39. Be4 {[%clk 0:00:06]}  Re1+ {[%clk 0:00:56]} 40. Kd4 {[%clk 0:00:07]}  Rd1+ {[%clk 0:00:56]} 41. Ke3 {[%clk 0:00:06]}  Re1+ {[%clk 0:00:57]} 42. Kd4 {[%clk 0:00:07]}  Be6 {[%clk 0:00:57]} 43. a4 {[%clk 0:00:05]}  f5 {[%clk 0:00:57]} 44. Bf3 {[%clk 0:00:04]}  g4 {[%clk 0:00:58]} 45. hxg4 {[%clk 0:00:04]}  fxg4 {[%clk 0:00:59]} 46. Be4 {[%clk 0:00:05]}  Rd1+ {[%clk 0:01:00]} 47. Ke3 {[%clk 0:00:05]}  Re1+ {[%clk 0:01:00]} 48. Kf4 {[%clk 0:00:06]}  Ra1 {[%clk 0:01:01]} 49. Ra6 {[%clk 0:00:04]}  Rf1+ {[%clk 0:01:01]} 50. Ke5 {[%clk 0:00:03]}  Bc4 {[%clk 0:01:01]} 51. Ra7+ {[%clk 0:00:04]}  Kd8 {[%clk 0:01:01]} 52. a5 {[%clk 0:00:04]}  h5 {[%clk 0:01:02]} 53. Kd6 {[%clk 0:00:04]}  Rd1+ {[%clk 0:01:02]} 54. Kc6 {[%clk 0:00:04]}  Rc1 {[%clk 0:01:02]} 55. Kd6 {[%clk 0:00:04]}  Rd1+ {[%clk 0:01:02]} 56. Kc6 {[%clk 0:00:04]}  Bf1 {[%clk 0:01:02]} 57. a6 {[%clk 0:00:04]}  Ra1 {[%clk 0:01:03]} 58. Ra8+ {[%clk 0:00:03]}  Ke7 {[%clk 0:01:03]} 59. a7 {[%clk 0:00:04]}  h4 {[%clk 0:01:04]} 60. Kb6 {[%clk 0:00:05]}  Ra6+ {[%clk 0:01:02]} 61. Kb7 {[%clk 0:00:04]}  Ra4 {[%clk 0:01:02]} 62. Rh8 {[%clk 0:00:01]}  Rb4+ {[%clk 0:00:59]} 63. Kc7 {[%clk 0:00:02]}  Rc4+ {[%clk 0:00:59]} 64. Kb6 {[%clk 0:00:02]}  Rb4+ {[%clk 0:00:59]} 65. Kc5 {[%clk 0:00:02]}  Rb5+ {[%clk 0:01:00]} 66. Kc6 {[%clk 0:00:03]}  Ra5 {[%clk 0:01:00]} 67. a8=Q {[%clk 0:00:03]}  Rxa8 {[%clk 0:01:01]} 68. Rxa8 {[%clk 0:00:02]}  Kf6 {[%clk 0:01:02]} 69. Rh8 {[%clk 0:00:02]}  Kg5 {[%clk 0:01:03]} 70. b4 {[%clk 0:00:02]}  Be2 {[%clk 0:01:04]} 71. b5 {[%clk 0:00:02]}  Kf4 {[%clk 0:01:04]} 72. b6 {[%clk 0:00:03]}  Kxe4 {[%clk 0:01:04]} 73. b7 {[%clk 0:00:03]}  Kf4 {[%clk 0:01:04]} 74. b8=Q+ {[%clk 0:00:03]}  Ke3 {[%clk 0:01:05]} 75. Qe5+ {[%clk 0:00:04]}  Kf2 {[%clk 0:01:06]} 76. Rf8+ {[%clk 0:00:03]}  Ke1 {[%clk 0:01:05]} 77. Qe3 {[%clk 0:00:03]}  g3 {[%clk 0:01:05]} 78. Qc1+ {[%clk 0:00:02]}  Bd1 {[%clk 0:01:06]} 79. Re8+ {[%clk 0:00:02]}  Kf2 {[%clk 0:01:06]} 80. Qxd1 {[%clk 0:00:03]}  Kxg2 {[%clk 0:01:07]} 81. Qe2+ {[%clk 0:00:03]}  Kh3 {[%clk 0:01:08]} 82. Rg8 {[%clk 0:00:03]}  g2 {[%clk 0:01:09]} 83. Qxg2# {[%clk 0:00:04]} 1-0


[Site "https://www.chess.com"]